fUST/lending_fUST_20250424
["ID","MTS","AMOUNT","RATE_DAILY","PERIOD"]
[358821190,1745467110443,-152.0,0.00018068,2]
[358821191,1745467113554,-159.64298437,0.00018067,2]
[358821192,1745467129968,-152.0,0.00018067,2]
[358821193,1745467151797,-188.35701563,0.00018067,2]
[358821194,1745467151826,-10.64893437,0.00018067,2]
[358821195,1745467166899,-250.0,0.00018067,2]
[358821196,1745467185478,-239.35106563,0.00018067,2]
[358821197,1745467185502,-213.67215537,0.00018067,2]
[358821198,1745467204007,-199.93219,0.00018067,2]
[358821199,1745467220403,-86.39565463,0.00018067,2]
[358821200,1745467220433,-130.34088537,0.00018067,2]
[358821203,1745467244579,-207.2849,0.00018067,2]
[358821206,1745467281415,-37.10167339,0.00018067,2]
[358821207,1745467281440,-230.71012661,0.00018067,2]
[358821208,1745467300385,-152.0,0.00018067,2]
[358821209,1745467316961,-145.34046239,0.00018067,2]
[358821210,1745467316992,-112.62043761,0.00018067,2]
[358821211,1745467330262,152.0,0.00018066,2]
[358821212,1745467353506,-273.766,0.00018066,2]
[358821213,1745467358928,-169.78339878,0.00018065,2]
[358821254,1745467836190,-280.80973726,0.000189,2]
[358821276,1745467838321,-1540.69417964,0.000189,2]
[358821277,1745467838331,-539.52339067,0.000189,2]
[358821278,1745467838343,-1290.45939743,0.000189,2]
[358821279,1745467838353,-1444.39415862,0.0001907,2]
[358821280,1745467838376,-1275.2304708,0.0001907,2]
[358821281,1745467838391,-620.25981058,0.0001907,2]
[358821282,1745467838401,-388.9019121,0.00019205,2]
[358821283,1745467838411,-500.0,0.00019215,2]
[358821284,1745467838422,-259.05353878,0.00019215,2]
[358821285,1745467838431,-500.0,0.00019215,2]
[358821286,1745467838441,-161.97808074,0.00019215,2]
[358821287,1745467838451,-14.85837239,0.00019216,2]
[358821288,1745467838463,-1985.14162761,0.00019216,2]
[358821289,1745467838474,-201.0,0.00019515,2]
[358821291,1745467838484,-935.0,0.00019515,2]
[358821293,1745467838495,-16.21188691,0.00019516,2]
[358821297,1745467838546,-3033.45207389,0.00019516,2]
[358821299,1745467838557,-351.987,0.0002,2]
[358821301,1745467838567,-175.196656,0.00020255,2]
[358821303,1745467838578,-5000.0,0.000203,2]
[358821304,1745467838587,-24252.7410571,0.00020403,2]
[358821305,1745467838599,-1832.54240661,0.000209,2]
[358821306,1745467838608,-500.0,0.00021,2]
[358821307,1745467838618,-500.0,0.00021,2]
[358821308,1745467838627,-500.0,0.00021,2]
[358821310,1745467838637,-500.0,0.00021,2]
[358821312,1745467838647,-500.0,0.00021,2]
[358821314,1745467838657,-500.0,0.00021,2]
[358821316,1745467838667,-500.0,0.00021,2]
[358821318,1745467838677,-500.0,0.00021,2]
[358821320,1745467838688,-500.0,0.00021,2]
[358821323,1745467838698,-500.0,0.00021,2]
[358821325,1745467838708,-157.04,0.00021,2]
[358821327,1745467838718,-151.0,0.00021165,2]
[358821329,1745467838728,-215.0738,0.00021165,2]
[358821331,1745467838738,-4291.25883112,0.00021568,3]
[358821333,1745467838748,-800.0,0.00021643,2]
[358821335,1745467838758,-800.0,0.00021662,2]
[358821337,1745467838770,-800.0,0.0002167,2]
[358821339,1745467838780,-800.0,0.00021673,2]
[358821365,1745467839007,-800.0,0.00021677,2]
[358821367,1745467839021,-800.0,0.00021678,2]
[358821369,1745467839033,-800.0,0.00021696,2]
[358821371,1745467839042,-800.0,0.00021703,2]
[358821373,1745467839053,-800.0,0.00021712,2]
[358821375,1745467839062,-151.0,0.00021713,2]
[358821377,1745467839072,-800.0,0.00021716,2]
[358821379,1745467839082,-500.0,0.00021739,7]
[358821381,1745467839092,-357.96,0.00021739,7]
[358821383,1745467839102,-800.0,0.00021751,2]
[358821386,1745467839112,-800.0,0.00021756,2]
[358821388,1745467839122,-800.0,0.00021761,2]
[358821390,1745467839131,-800.0,0.00021765,2]
[358821391,1745467839141,-800.0,0.00021766,2]
[358821392,1745467839151,-800.0,0.00021795,2]
[358821393,1745467839160,-640.08619102,0.00021817,2]
[358821394,1745467839170,-800.0,0.00021839,2]
[358821395,1745467839180,-800.0,0.00021844,2]
[358821396,1745467839189,-800.0,0.00021846,2]
[358821397,1745467839199,-800.0,0.00021846,2]
[358821398,1745467839208,-800.0,0.00021867,2]
[358821399,1745467839218,-800.0,0.00021871,2]
[358821400,1745467839227,-276.70534305,0.00021873,2]
[358821401,1745467839237,-800.0,0.00021901,2]
[358821402,1745467839247,-800.0,0.00021905,2]
[358821403,1745467839256,-314.62,0.00021907,3]
[358821404,1745467839268,-160.0,0.00021909,2]
[358821405,1745467839278,-15851.57918155,0.00021913,2]
[358821406,1745467839287,-160.0,0.00021916,2]
[358821407,1745467839298,-160.0,0.00021917,3]
[358821408,1745467839307,-87876.37785344,0.00021917,2]
[358821409,1745467839318,-15570.0074287,0.00021917,3]
[358821410,1745467839328,-500.0,0.00021917,2]
[358821411,1745467839338,-500.0,0.00021917,2]
[358821412,1745467839348,-502.54464562,0.00021917,2]
[358821413,1745467839357,-501.04981886,0.00021917,2]
[358821414,1745467839367,-500.0,0.00021917,2]
[358821415,1745467839376,-501.11794792,0.00021917,2]
[358821416,1745467839386,-500.0,0.00021917,2]
[358821417,1745467839398,-502.2921335,0.00021917,2]
[358821418,1745467839408,-502.32704304,0.00021917,2]
[358821419,1745467839418,-502.34817361,0.00021917,2]
[358821420,1745467839428,-502.26858678,0.00021917,2]
[358821421,1745467839438,-502.58216655,0.00021917,2]
[358821422,1745467839447,-500.0,0.00021917,2]
[358821423,1745467839458,-501.95989591,0.00021917,2]
[358821424,1745467839468,-500.0,0.00021917,2]
[358821425,1745467839478,-502.36080311,0.00021917,2]
[358821427,1745467839488,-582.96485834,0.00021917,2]
[358821429,1745467839498,-500.0,0.00021917,2]
[358821430,1745467839508,-500.0,0.00021917,2]
[358821431,1745467839520,-500.0,0.00021917,2]
[358821432,1745467839530,-500.0,0.00021917,2]
[358821433,1745467839539,-455.56353593,0.00021917,2]
[358821434,1745467839550,-500.0,0.00021917,2]
[358821435,1745467839560,-500.0,0.00021917,2]
[358821436,1745467839569,-500.0,0.00021917,2]
[358821437,1745467839579,-500.0,0.00021917,2]
[358821438,1745467839594,-500.0,0.00021917,2]
[358821440,1745467839604,-500.0,0.00021917,2]
[358821441,1745467839614,-500.0,0.00021917,2]
[358821442,1745467839624,-500.0,0.00021917,2]
[358821443,1745467839634,-507.45974229,0.00021917,2]
[358821444,1745467839644,-500.0,0.00021917,2]
[358821445,1745467839655,-500.0,0.00021917,2]
[358821446,1745467839665,-500.0,0.00021917,2]
[358821447,1745467839675,-500.0,0.00021917,2]
[358821448,1745467839684,-500.0,0.00021917,2]
[358821449,1745467839694,-500.0,0.00021917,2]
[358821450,1745467839704,-272.49334913,0.00021917,2]
[358821451,1745467839714,-500.0,0.00021917,2]
[358821452,1745467839724,-500.0,0.00021917,2]
[358821453,1745467839733,-500.0,0.00021917,2]
[358821454,1745467839743,-500.0,0.00021917,2]
[358821455,1745467839753,-500.0,0.00021917,2]
[358821456,1745467839763,-500.0,0.00021917,2]
[358821457,1745467839772,-500.0,0.00021917,2]
[358821458,1745467839782,-500.0,0.00021917,2]
[358821459,1745467839791,-500.0,0.00021917,2]
[358821460,1745467839802,-500.0,0.00021917,2]
[358821461,1745467839811,-500.0,0.00021917,2]
[358821462,1745467839821,-500.0,0.00021917,2]
[358821463,1745467839831,-577.13182374,0.00021917,2]
[358821464,1745467839841,-500.0,0.00021917,2]
[358821465,1745467839851,-500.0,0.00021917,2]
[358821466,1745467839860,-500.0,0.00021917,2]
[358821467,1745467839871,-500.0,0.00021917,2]
[358821468,1745467839881,-500.0,0.00021917,2]
[358821469,1745467839891,-500.0,0.00021917,2]
[358821470,1745467839902,-500.0,0.00021917,2]
[358821471,1745467839912,-500.0,0.00021917,2]
[358821472,1745467839922,-500.0,0.00021917,2]
[358821473,1745467839932,-506.74044132,0.00021917,2]
[358821474,1745467839943,-500.0,0.00021917,2]
[358821475,1745467839953,-500.0,0.00021917,2]
[358821476,1745467839962,-500.0,0.00021917,2]
[358821477,1745467839972,-781.12,0.00021917,2]
[358821478,1745467839981,-500.0,0.00021917,2]
[358821479,1745467839992,-500.0,0.00021917,2]
[358821480,1745467840002,-500.0,0.00021917,2]
[358821481,1745467840013,-500.0,0.00021917,2]
[358821482,1745467840022,-864.33,0.00021917,2]
[358821483,1745467840032,-500.0,0.00021917,2]
[358821484,1745467840042,-500.0,0.00021917,2]
[358821485,1745467840052,-1105.46,0.00021917,2]
[358821486,1745467840062,-507.50172597,0.00021917,2]
[358821487,1745467840072,-500.0,0.00021917,2]
[358821488,1745467840082,-500.0,0.00021917,2]
[358821489,1745467840092,-500.0,0.00021917,2]
[358821490,1745467840102,-500.0,0.00021917,2]
[358821491,1745467840112,-500.0,0.00021917,2]
[358821492,1745467840121,-500.0,0.00021917,2]
[358821493,1745467840132,-500.0,0.00021917,2]
[358821494,1745467840143,-500.0,0.00021917,2]
[358821495,1745467840153,-604.31,0.00021917,2]
[358821496,1745467840162,-500.0,0.00021917,2]
[358821497,1745467840172,-500.0,0.00021917,2]
[358821498,1745467840182,-500.0,0.00021917,2]
[358821499,1745467840192,-500.0,0.00021917,2]
[358821500,1745467840202,-500.0,0.00021917,2]
[358821501,1745467840212,-500.0,0.00021917,2]
[358821502,1745467840222,-500.0,0.00021917,2]
[358821503,1745467840232,-500.0,0.00021917,2]
[358821504,1745467840242,-895.75,0.00021917,2]
[358821505,1745467840252,-500.0,0.00021917,2]
[358821506,1745467840264,-500.0,0.00021917,2]
[358821507,1745467840274,-500.0,0.00021917,2]
[358821508,1745467840285,-579.64,0.00021917,2]
[358821509,1745467840295,-500.0,0.00021917,2]
[358821510,1745467840316,-500.0,0.00021917,2]
[358821511,1745467840329,-500.0,0.00021917,2]
[358821512,1745467840339,-500.0,0.00021917,2]
[358821513,1745467840350,-163.50651354,0.00021917,2]
[358821514,1745467840361,-500.0,0.00021917,2]
[358821515,1745467840377,-500.0,0.00021917,2]
[358821516,1745467840388,-500.0,0.00021917,2]
[358821517,1745467840398,-654.75,0.00021917,2]
[358821518,1745467840408,-393.72612595,0.00021917,2]
[358821519,1745467840418,-506.46987104,0.00021917,2]
[358821520,1745467840428,-500.0,0.00021917,2]
[358821521,1745467840439,-1000.0,0.00021917,2]
[358821522,1745467840449,-828.39,0.00021917,2]
[358821523,1745467840460,-507.82117631,0.00021917,2]
[358821524,1745467840470,-500.0,0.00021917,2]
[358821525,1745467840481,-500.0,0.00021917,2]
[358821526,1745467840491,-199.53342258,0.00021917,2]
[358821527,1745467840501,-505.28617968,0.00021917,2]
[358821528,1745467840513,-500.0,0.00021917,2]
[358821529,1745467840524,-966.96,0.00021917,2]
[358821530,1745467840534,-526.56586309,0.00021917,2]
[358821531,1745467840544,-500.0,0.00021917,2]
[358821532,1745467840555,-500.0,0.00021917,2]
[358821533,1745467840565,-500.0,0.00021917,2]
[358821534,1745467840575,-224.41778016,0.00021917,2]
[358821535,1745467840585,-500.0,0.00021917,2]
[358821536,1745467840596,-500.0,0.00021917,2]
[358821537,1745467840607,-500.0,0.00021917,2]
[358821538,1745467840617,-500.0,0.00021917,2]
[358821539,1745467840627,-500.0,0.00021917,2]
[358821540,1745467840638,-500.0,0.00021917,2]
[358821541,1745467840648,-500.0,0.00021917,2]
[358821542,1745467840658,-500.0,0.00021917,2]
[358821543,1745467840668,-500.0,0.00021917,2]
[358821544,1745467840678,-864.04,0.00021917,2]
[358821545,1745467840688,-509.00609804,0.00021917,2]
[358821546,1745467840698,-500.0,0.00021917,2]
[358821547,1745467840708,-500.0,0.00021917,2]
[358821548,1745467840718,-1136.0,0.00021917,2]
[358821549,1745467840728,-500.0,0.00021917,2]
[358821550,1745467840738,-500.0,0.00021917,2]
[358821551,1745467840748,-500.0,0.00021917,2]
[358821552,1745467840758,-500.0,0.00021917,2]
[358821554,1745467840770,-500.0,0.00021917,2]
[358821556,1745467840780,-150.97813828,0.00021917,2]
[358821557,1745467840790,-500.0,0.00021917,2]
[358821558,1745467840799,-500.0,0.00021917,2]
[358821559,1745467840809,-500.0,0.00021917,2]
[358821560,1745467840819,-500.0,0.00021917,2]
[358821561,1745467840833,-500.0,0.00021917,2]
[358821562,1745467840843,-501.15594124,0.00021917,2]
[358821563,1745467840853,-500.0,0.00021917,2]
[358821564,1745467840862,-321.79435926,0.00021917,2]
[358821565,1745467840872,-503.06051988,0.00021917,2]
[358821566,1745467840882,-500.53962334,0.00021917,2]
[358821567,1745467840891,-402.24934952,0.00021917,2]
[358821568,1745467840901,-500.0,0.00021917,2]
[358821569,1745467840912,-500.0,0.00021917,2]
[358821570,1745467840921,-500.0,0.00021917,2]
[358821571,1745467840931,-500.0,0.00021917,2]
[358821572,1745467840941,-285.8334742,0.00021917,2]
[358821573,1745467840951,-500.0,0.00021917,2]
[358821574,1745467840962,-500.0,0.00021917,2]
[358821575,1745467840972,-500.0,0.00021917,2]
[358821576,1745467840983,-500.0,0.00021917,2]
[358821577,1745467840992,-500.0,0.00021917,2]
[358821578,1745467841002,-689.89,0.00021917,2]
[358821579,1745467841013,-500.0,0.00021917,2]
[358821580,1745467841023,-500.0,0.00021917,2]
[358821581,1745467841033,-500.0,0.00021917,2]
[358821582,1745467841043,-326.35063124,0.00021917,2]
[358821583,1745467841054,-661.38,0.00021917,2]
[358821584,1745467841064,-619.1056538,0.00021917,2]
[358821585,1745467841074,-151.2654259,0.00021917,2]
[358821586,1745467841084,-500.0,0.00021917,2]
[358821587,1745467841094,-500.0,0.00021917,2]
[358821588,1745467841104,-500.0,0.00021917,2]
[358821589,1745467841114,-701.6,0.00021917,2]
[358821590,1745467841124,-500.0,0.00021917,2]
[358821591,1745467841134,-500.0,0.00021917,2]
[358821592,1745467841144,-500.0,0.00021917,2]
[358821593,1745467841154,-500.0,0.00021917,2]
[358821594,1745467841164,-500.0,0.00021917,2]
[358821595,1745467841174,-500.0,0.00021917,2]
[358821596,1745467841184,-500.0,0.00021917,2]
[358821597,1745467841194,-507.00089983,0.00021917,2]
[358821598,1745467841204,-707.62,0.00021917,2]
[358821599,1745467841214,-500.0,0.00021917,2]
[358821600,1745467841225,-500.0,0.00021917,2]
[358821601,1745467841236,-500.0,0.00021917,2]
[358821602,1745467841246,-590.44,0.00021917,2]
[358821603,1745467841256,-506.7269789,0.00021917,2]
[358821604,1745467841269,-500.0,0.00021917,2]
[358821605,1745467841279,-500.0,0.00021917,2]
[358821606,1745467841290,-543.38,0.00021917,2]
[358821607,1745467841301,-502.6369472,0.00021917,2]
[358821608,1745467841312,-500.0,0.00021917,2]
[358821609,1745467841322,-500.0,0.00021917,2]
[358821610,1745467841332,-500.0,0.00021917,2]
[358821611,1745467841343,-500.0,0.00021917,2]
[358821612,1745467841353,-500.0,0.00021917,2]
[358821613,1745467841363,-500.0,0.00021917,2]
[358821614,1745467841373,-500.0,0.00021917,2]
[358821615,1745467841384,-500.0,0.00021917,2]
[358821616,1745467841393,-674.94,0.00021917,2]
[358821617,1745467841404,-518.09877324,0.00021917,2]
[358821618,1745467841414,-397.83837285,0.00021917,2]
[358821619,1745467841712,-420.89490186,0.00021909,2]
[358821620,1745467841722,-102.16162715,0.00021917,2]
[358821621,1745467841732,-500.0,0.00021917,2]
[358821622,1745467841742,-155.53788964,0.00021917,2]
[358821642,1745467844711,-344.46211036,0.00021917,2]
[358821643,1745467844720,-500.0,0.00021917,2]
[358821644,1745467844730,-500.0,0.00021917,2]
[358821645,1745467844740,-704.55,0.00021917,2]
[358821646,1745467844750,-500.0,0.00021917,2]
[358821647,1745467844759,-384.30788964,0.00021917,2]
[358821655,1745467846244,-115.69211036,0.00021917,2]
[358821656,1745467846254,-500.0,0.00021917,2]
[358821657,1745467846264,-500.0,0.00021917,2]
[358821658,1745467846274,-500.0,0.00021917,2]
[358821659,1745467846283,-234.30788964,0.00021917,2]
[358821662,1745467846426,-265.69211036,0.00021917,2]
[358821663,1745467846437,-591.05260331,0.00021917,2]
[358821664,1745467846447,-550.66120759,0.00021917,2]
[358821665,1745467846457,-500.0,0.00021917,2]
[358821666,1745467846466,-500.0,0.00021917,2]
[358821667,1745467846476,-500.0,0.00021917,2]
[358821668,1745467846485,-534.23,0.00021917,2]
[358821669,1745467846495,-500.0,0.00021917,2]
[358821670,1745467846504,-500.0,0.00021917,2]
[358821671,1745467846514,-500.0,0.00021917,2]
[358821672,1745467846527,-571.98,0.00021917,2]
[358821673,1745467846537,-500.0,0.00021917,2]
[358821675,1745467846546,-500.0,0.00021917,2]
[358821676,1745467846556,-500.0,0.00021917,2]
[358821677,1745467846566,-1340.74,0.00021917,2]
[358821678,1745467846575,-500.0,0.00021917,2]
[358821679,1745467846584,-500.0,0.00021917,2]
[358821680,1745467846594,-1231.87,0.00021917,2]
[358821681,1745467846606,-593.81,0.00021917,2]
[358821682,1745467846615,-500.0,0.00021917,2]
[358821683,1745467846625,-500.0,0.00021917,2]
[358821684,1745467846634,-622.42,0.00021917,2]
[358821685,1745467846643,-1113.34,0.00021917,2]
[358821686,1745467846653,-500.0,0.00021917,2]
[358821687,1745467846662,-500.0,0.00021917,2]
[358821688,1745467846671,-500.0,0.00021917,2]
[358821689,1745467846681,-459.02219521,0.00021917,2]
[358821690,1745467846690,-500.0,0.00021917,2]
[358821691,1745467846699,-500.0,0.00021917,2]
[358821692,1745467846709,-500.0,0.00021917,2]
[358821693,1745467846719,-307.90928176,0.00021917,2]
[358821694,1745467846729,-500.0,0.00021917,2]
[358821695,1745467846738,-504.73618627,0.00021917,2]
[358821696,1745467846748,-522.35227747,0.00021917,2]
[358821697,1745467846759,-500.0,0.00021917,2]
[358821698,1745467846768,-500.0,0.00021917,2]
[358821699,1745467846780,-500.0,0.00021917,2]
[358821700,1745467846790,-500.0,0.00021917,2]
[358821701,1745467846799,-500.0,0.00021917,2]
[358821702,1745467846808,-500.0,0.00021917,2]
[358821703,1745467846817,-1115.66,0.00021917,2]
[358821704,1745467846827,-731.29,0.00021917,2]
[358821705,1745467846836,-500.0,0.00021917,2]
[358821706,1745467846845,-507.07743674,0.00021917,2]
[358821707,1745467846854,-500.0,0.00021917,2]
[358821708,1745467846864,-500.0,0.00021917,2]
[358821709,1745467846874,-500.0,0.00021917,2]
[358821710,1745467846883,-505.91996064,0.00021917,2]
[358821711,1745467846892,-1851.06,0.00021917,2]
[358821712,1745467846902,-500.0,0.00021917,2]
[358821713,1745467846911,-500.0,0.00021917,2]
[358821714,1745467846920,-500.0,0.00021917,2]
[358821715,1745467846930,-500.0,0.00021917,2]
[358821716,1745467846940,-500.0,0.00021917,2]
[358821717,1745467846950,-500.0,0.00021917,2]
[358821718,1745467846960,-908.14,0.00021917,2]
[358821719,1745467846970,-500.0,0.00021917,2]
[358821720,1745467846980,-1752.4,0.00021917,2]
[358821721,1745467846989,-1178.06,0.00021917,2]
[358821722,1745467846999,-500.0,0.00021917,2]
[358821723,1745467847008,-500.0,0.00021917,2]
[358821724,1745467847018,-644.68,0.00021917,2]
[358821725,1745467847029,-500.0,0.00021917,2]
[358821726,1745467847039,-1112.61,0.00021917,2]
[358821727,1745467847048,-500.0,0.00021917,2]
[358821728,1745467847058,-500.0,0.00021917,2]
[358821729,1745467847068,-982.79,0.00021917,2]
[358821730,1745467847078,-500.0,0.00021917,2]
[358821731,1745467847087,-500.0,0.00021917,2]
[358821732,1745467847096,-500.0,0.00021917,2]
[358821733,1745467847106,-500.0,0.00021917,2]
[358821734,1745467847115,-912.37,0.00021917,2]
[358821735,1745467847125,-615.61,0.00021917,2]
[358821736,1745467847134,-451.08525604,0.00021917,2]
[358821737,1745467847152,-48.91474396,0.00021917,2]
[358821738,1745467847162,-500.0,0.00021917,2]
[358821739,1745467847171,-500.0,0.00021917,2]
[358821740,1745467847181,-46.52274004,0.00021917,2]
[358821741,1745467883877,329.13523132,0.00017987,2]
[358821746,1745468368450,307.1928825,0.00017883,2]
[358821833,1745469032490,-307.1928825,0.00018138,2]
[358821835,1745469032500,-181.33747715,0.00018528,2]
[358821836,1745469032510,-500.0,0.00018528,2]
[358821837,1745469032520,-313.38465651,0.00018528,2]
[358821838,1745469032529,-5421.35687047,0.00018529,2]
[358821839,1745469032559,-18218.59906583,0.00018529,2]
[358821840,1745469032569,-307.1928825,0.00018559,2]
[358821841,1745469032579,-335.3980576,0.00018719,2]
[358821842,1745469032590,-1486.041623,0.00018745,2]
[358821843,1745469032600,-307.1928825,0.00018871,2]
[358821844,1745469032611,-1884.3921634,0.000189,2]
[358821845,1745469032621,-307.1928825,0.00018944,2]
[358821846,1745469032631,-307.1928825,0.0001938,2]
[358821847,1745469032641,-273.765942,0.00019444,2]
[358821848,1745469032651,-186.17991011,0.00019498,2]
[358821867,1745469038307,-500.0,0.00018528,2]
[358821869,1745469038318,-635.3264025,0.00018528,2]
[358821870,1745469038328,-121.01297239,0.00019498,2]
[358821871,1745469038339,-1200.0,0.00019499,2]
[358821872,1745469038348,-303.0,0.000195,2]
[358821873,1745469038358,-307.1928825,0.00019892,2]
[358821874,1745469038373,-300.0,0.00020043,2]
[358821875,1745469038383,-300.0,0.00020043,2]
[358821876,1745469038393,-1847.80481971,0.00020044,2]
[358821877,1745469038402,-151.0,0.00020076,2]
[358821878,1745469038412,-410.4127238,0.00020144,2]
[358821879,1745469038422,-307.1928825,0.00020269,2]
[358821880,1745469038431,-307.1928825,0.00020283,2]
[358821881,1745469038441,-307.1928825,0.00020622,2]
[358821882,1745469038451,-307.1928825,0.00020844,2]
[358821883,1745469038461,-307.1928825,0.00021152,2]
[358821884,1745469038471,-151.0,0.00021165,2]
[358821885,1745469038481,-207.4,0.00021165,2]
[358821886,1745469038491,-1680.0,0.00021346,2]
[358821887,1745469038501,-151.0,0.00021445,2]
[358821889,1745469038510,-307.1928825,0.0002156,2]
[358821890,1745469038520,-420.89490186,0.00021639,2]
[358821891,1745469038529,-800.0,0.00021683,2]
[358821892,1745469038539,-269.844623,0.00021795,15]
[358821893,1745469038549,-800.0,0.00021803,2]
[358821894,1745469038559,-620.2753323,0.00021817,2]
[358821895,1745469038569,-420.0,0.00021824,2]
[358821896,1745469038579,-307.0,0.00021824,2]
[358821897,1745469038589,-307.1928836,0.00021825,2]
[358821898,1745469038599,-2903.1,0.00021917,3]
[358821899,1745469038608,-2903.1,0.00021917,3]
[358821900,1745469038622,-2903.1,0.00021917,3]
[358821901,1745469038632,-500.0,0.00021917,2]
[358821902,1745469038642,-507.0158736,0.00021917,2]
[358821903,1745469038651,-579.13,0.00021917,2]
[358821904,1745469038661,-500.0,0.00021917,2]
[358821905,1745469038672,-500.0,0.00021917,2]
[358821906,1745469038682,-500.0,0.00021917,2]
[358821907,1745469038691,-447.17660476,0.00021917,2]
[358821908,1745469038704,-55.33964071,0.00021917,2]
[358821909,1745469038713,-500.0,0.00021917,2]
[358821910,1745469038723,-79.67750206,0.00021917,2]
[358821911,1745469038826,-420.32249794,0.00021917,2]
[358821912,1745469038836,-79.67750206,0.00021917,2]
[358821913,1745469038847,-420.32249794,0.00021917,2]
[358821914,1745469038857,-500.0,0.00021917,2]
[358821915,1745469038868,-858.43,0.00021917,2]
[358821916,1745469038879,-500.0,0.00021917,2]
[358821917,1745469038889,-557.99090127,0.00021917,2]
[358821918,1745469038899,-500.0,0.00021917,2]
[358821919,1745469038909,-500.0,0.00021917,2]
[358821920,1745469038918,-926.67,0.00021917,2]
[358821921,1745469038928,-544.29417408,0.00021917,2]
[358822006,1745469046481,-114.49582592,0.00021917,2]
[358822007,1745469046491,-500.0,0.00021917,2]
[358822008,1745469046501,-500.0,0.00021917,2]
[358822009,1745469046511,-293.67179026,0.00021917,2]
[358822010,1745469046520,-503.39577012,0.00021917,2]
[358822011,1745469046530,-500.0,0.00021917,2]
[358822012,1745469046539,-107.8163388,0.00021917,2]
[358822014,1745469046636,-392.1836612,0.00021917,2]
[358822017,1745469046646,-500.0,0.00021917,2]
[358822020,1745469046656,-500.0,0.00021917,2]
[358822022,1745469046666,-828.04,0.00021917,2]
[358822025,1745469046677,-500.0,0.00021917,2]
[358822027,1745469046686,-500.0,0.00021917,2]
[358822028,1745469046695,-500.0,0.00021917,2]
[358822029,1745469046705,-661.14,0.00021917,2]
[358822030,1745469046714,-500.0,0.00021917,2]
[358822031,1745469046723,-500.0,0.00021917,2]
[358822032,1745469046733,-500.0,0.00021917,2]
[358822033,1745469046743,-500.0,0.00021917,2]
[358822034,1745469046752,-500.0,0.00021917,2]
[358822035,1745469046762,-500.0,0.00021917,2]
[358822036,1745469046771,-500.0,0.00021917,2]
[358822037,1745469046780,-507.21884628,0.00021917,2]
[358822038,1745469046789,-500.0,0.00021917,2]
[358822039,1745469046799,-622.2911515,0.00021917,2]
[358822040,1745469046809,-500.0,0.00021917,2]
[358822041,1745469046818,-500.0,0.00021917,2]
[358822042,1745469046828,-500.0,0.00021917,2]
[358822043,1745469046838,-500.0,0.00021917,2]
[358822044,1745469046848,-661.42,0.00021917,2]
[358822045,1745469046858,-500.0,0.00021917,2]
[358822046,1745469046869,-500.0,0.00021917,2]
[358822047,1745469046879,-500.0,0.00021917,2]
[358822048,1745469046888,-510.88526489,0.00021917,2]
[358822049,1745469046897,-310.77408041,0.00021917,2]
[358822050,1745469046907,-500.0,0.00021917,2]
[358822051,1745469046916,-500.0,0.00021917,2]
[358822052,1745469046926,-500.0,0.00021917,2]
[358822053,1745469046935,-429.82016151,0.00021917,2]
[358822054,1745469046944,-926.17,0.00021917,2]